bitfinex-derivatives/quotes_BTCF0:USTF0_20250719
["timestamp","ask_amount","ask_price","bid_price","bid_amount"]
[1752926903929,0.44135963,118300.0,118290.0,0.54633764]
[1752926904226,0.44135963,118300.0,118290.0,0.67344112]
[1752926904523,0.31425615,118300.0,118290.0,0.67344112]
[1752926904924,0.44135963,118300.0,118290.0,0.67344112]
[1752926905429,0.31425615,118300.0,118290.0,0.67344112]
[1752926905625,0.44135963,118300.0,118290.0,0.67344112]
[1752926906124,0.31425615,118300.0,118290.0,0.67344112]
[1752926908928,0.31425615,118300.0,118290.0,0.31264112]
[1752926909125,0.31425615,118300.0,118290.0,0.67344112]
[1752926910030,0.44135963,118300.0,118290.0,0.67344112]
[1752926910732,0.31425615,118300.0,118290.0,0.67344112]
[1752926910928,0.05990705,118300.0,118290.0,1.33326199]
[1752926911328,0.2621879,118320.0,118310.0,0.1689548]
[1752926911533,0.2621879,118320.0,118310.0,1.74144176]
[1752926911534,0.27384502,118320.0,118310.0,1.74144176]
[1752926912531,0.27876502,118320.0,118310.0,1.74344176]
[1752926912737,0.2622779,118320.0,118310.0,1.78899108]
[1752926912929,0.2622779,118320.0,118310.0,1.7044953]
[1752926913129,0.2622779,118320.0,118310.0,1.7064953]
[1752926914534,0.4736579,118320.0,118310.0,1.7064953]
[1752926916332,0.4736579,118320.0,118310.0,1.66094598]
[1752926916531,0.4736579,118320.0,118310.0,1.72171968]
[1752926916856,0.4736579,118320.0,118310.0,2.01691968]
[1752926919236,0.4687379,118320.0,118310.0,2.01691968]
[1752926920436,0.4736579,118320.0,118310.0,2.01691968]
[1752926920639,0.26248,118320.0,118310.0,2.01691968]
[1752926920835,0.21138,118320.0,118310.0,2.34691968]
[1752926921438,0.3803205,118320.0,118310.0,2.34691968]
[1752926921638,0.21138,118320.0,118310.0,2.34691968]
[1752926921834,0.21138,118320.0,118310.0,2.28614598]
[1752926922140,0.21138,118320.0,118310.0,1.7864348]
[1752926922335,0.3803205,118320.0,118310.0,1.7864348]
[1752926922641,0.21138,118320.0,118310.0,2.26614598]
[1752926923140,0.21138,118320.0,118310.0,2.32683207]
[1752926928042,0.08510282,118320.0,118310.0,2.49654325]
[1752926928346,0.08510282,118320.0,118310.0,2.51171478]
[1752926929436,0.08510282,118320.0,118310.0,2.43585716]
[1752926931846,0.08510282,118320.0,118310.0,2.0964348]
[1752926932047,0.08510282,118320.0,118310.0,2.43585716]
[1752926932555,0.08510282,118320.0,118310.0,2.49644635]
[1752926932763,0.08510282,118320.0,118310.0,2.43585716]
[1752926933352,0.08510282,118320.0,118310.0,2.49644654]
[1752926934955,0.08510282,118320.0,118310.0,2.43585716]
[1752926936053,0.08510282,118320.0,118310.0,2.57615716]
[1752926936356,0.08510282,118320.0,118310.0,2.65201478]
[1752926937156,0.00213487,118320.0,118310.0,2.69430537]
[1752926938156,0.09007849,118330.0,118320.0,0.1689405]
[1752926938356,0.1738432,118340.0,118330.0,0.1930962]
[1752926938357,0.04135373,118340.0,118330.0,0.1930962]
[1752926938657,0.04135373,118340.0,118330.0,2.12503845]
[1752926938859,0.04135373,118340.0,118330.0,1.74503845]
[1752926939060,0.18784388,118350.0,118340.0,0.168912]
[1752926939361,0.18784388,118350.0,118340.0,0.69934529]
[1752926939558,0.01893818,118350.0,118340.0,0.69934529]
[1752926940059,0.01893818,118350.0,118340.0,0.74481224]
[1752926940360,0.18783588,118350.0,118340.0,0.74481224]
[1752926940754,0.18783588,118350.0,118340.0,0.57517895]
[1752926941459,0.39921588,118350.0,118340.0,0.74481224]
[1752926941660,0.40121588,118350.0,118340.0,0.74481224]
[1752926942657,0.40121588,118350.0,118340.0,0.69934529]
[1752926944567,0.3832777,118350.0,118340.0,0.69934529]
[1752926944767,0.3832777,118350.0,118340.0,0.529712]
[1752926945082,0.3832777,118350.0,118340.0,0.69934529]
[1752926945565,0.3832777,118350.0,118340.0,0.74481224]
[1752926945766,0.21438,118350.0,118340.0,1.07481224]
[1752926946067,0.3832777,118350.0,118340.0,0.74481224]
[1752926946364,0.21438,118350.0,118340.0,0.74481224]
[1752926946872,0.3832777,118350.0,118340.0,0.74481224]
[1752926948468,0.3832777,118350.0,118340.0,0.81325454]
[1752926952766,0.3832777,118350.0,118340.0,0.76778759]
[1752926953167,0.3832777,118350.0,118340.0,0.81333457]
[1752926953472,0.3832777,118350.0,118340.0,0.76778759]
[1752926955872,0.21438,118350.0,118340.0,0.76778759]
[1752926956071,0.3832777,118350.0,118340.0,0.76778759]
[1752926957477,0.3832777,118350.0,118340.0,0.82839892]
[1752926958272,0.21438,118350.0,118340.0,0.82839892]
[1752926960169,0.3832777,118350.0,118340.0,0.82839892]
[1752926960367,0.21438,118350.0,118340.0,0.82839892]
[1752926960573,0.21893,118350.0,118340.0,0.83184892]
[1752926966478,0.21438,118350.0,118340.0,1.18184892]
[1752926967081,0.21438,118350.0,118340.0,1.47704892]
[1752926967269,0.21438,118350.0,118340.0,1.41643759]
[1752926967474,0.21438,118350.0,118340.0,1.49229521]
[1752926967980,0.17273356,118350.0,118340.0,1.49229521]
[1752926968279,0.14173329,118350.0,118340.0,1.49229521]
[1752926968680,0.09903329,118350.0,118340.0,1.49229521]
[1752926969481,0.01530329,118350.0,118340.0,1.49329521]
[1752926969680,0.00480329,118350.0,118340.0,1.49329521]
[1752926973185,0.00480329,118350.0,118340.0,1.49429521]
[1752926976994,0.00935329,118350.0,118340.0,1.83953521]
[1752926977183,0.00935329,118350.0,118340.0,1.83608521]
[1752926977384,0.17825099,118350.0,118340.0,1.16498759]
[1752926977584,0.17825099,118350.0,118340.0,1.82131194]
[1752926980793,0.19723099,118350.0,118340.0,1.82131194]
[1752926982400,0.24424099,118350.0,118340.0,1.82131194]
[1752926982698,0.24424099,118350.0,118340.0,1.65167865]
[1752926983090,0.24424099,118350.0,118340.0,1.82131194]
[1752926983394,0.24424099,118350.0,118340.0,1.22567194]
[1752926983583,0.24424099,118350.0,118340.0,1.82131194]
[1752926984895,0.24724099,118350.0,118340.0,1.81931194]
[1752926986795,0.07834329,118350.0,118340.0,1.81931194]
[1752926987196,0.24724099,118350.0,118340.0,1.81931194]
[1752926987601,0.24724099,118350.0,118340.0,1.52411194]
[1752926993204,0.24724099,118350.0,118340.0,1.46342759]
[1752926997122,0.24724099,118350.0,118340.0,1.44882759]
[1752926998323,0.24724099,118350.0,118340.0,1.50951194]
[1752927001217,0.07834329,118350.0,118340.0,1.50959194]
[1752927001420,0.24724239,118350.0,118340.0,1.50959194]
[1752927007130,0.24724239,118350.0,118340.0,1.44890759]
[1752927008028,0.24958239,118350.0,118340.0,1.44890759]
[1752927008327,0.28198239,118350.0,118340.0,1.44890759]
[1752927011133,0.28198239,118350.0,118340.0,1.53371978]
[1752927011819,0.28198239,118350.0,118340.0,1.2792743]
[1752927012024,0.40920513,118350.0,118340.0,1.2791943]
[1752927012228,0.28198239,118350.0,118340.0,1.59445727]
[1752927012429,0.28198239,118350.0,118340.0,1.53363978]
[1752927012631,0.28198239,118350.0,118340.0,1.3400118]
[1752927012931,0.28198239,118350.0,118340.0,1.59445728]
[1752927013328,0.28198239,118350.0,118340.0,0.99894728]
[1752927013633,0.28198239,118350.0,118340.0,1.50342728]
[1752927014246,0.40920513,118350.0,118340.0,1.50342728]
[1752927014734,0.28198239,118350.0,118340.0,1.50342728]
[1752927014933,0.28198239,118350.0,118340.0,1.41863912]
[1752927020835,0.28198239,118350.0,118340.0,1.2489818]
[1752927021034,0.28198239,118350.0,118340.0,1.41863912]
[1752927024338,0.28198239,118350.0,118340.0,1.2489818]
[1752927024538,0.28198239,118350.0,118340.0,1.41863912]
[1752927029136,0.28198239,118350.0,118340.0,1.35019682]
[1752927029346,0.28198239,118350.0,118340.0,1.28937932]
[1752927031041,0.28198239,118350.0,118340.0,1.35019682]
[1752927033746,0.28198239,118350.0,118340.0,1.1805395]
[1752927033947,0.28198239,118350.0,118340.0,1.35019682]
[1752927035048,0.28198239,118350.0,118340.0,1.43502328]
[1752927036149,0.28198239,118350.0,118340.0,1.37420578]
[1752927036451,0.28198239,118350.0,118340.0,0.48817189]
[1752927036743,0.78644679,118350.0,118340.0,0.04560561]
[1752927036949,0.78644679,118350.0,118340.0,0.64692561]
[1752927036950,0.78644683,118350.0,118340.0,0.64692561]
[1752927037852,0.42564683,118350.0,118340.0,0.9430797]
[1752927038446,0.28198239,118350.0,118340.0,1.3038797]
[1752927038644,0.40922428,118350.0,118340.0,1.3038797]
[1752927039852,0.40922428,118350.0,118340.0,1.1349675]
[1752927041351,0.40922428,118350.0,118340.0,0.7741675]
[1752927042154,0.40922428,118350.0,118340.0,0.9430797]
[1752927042345,0.28198239,118350.0,118340.0,0.9430797]
[1752927042541,0.40922428,118350.0,118340.0,0.9430797]
[1752927042755,0.42563541,118350.0,118340.0,0.89747409]
[1752927043450,0.29839352,118350.0,118340.0,1.38551598]
[1752927043752,0.26365352,118350.0,118340.0,1.38551598]
[1752927044755,0.28017352,118350.0,118340.0,1.38551598]
[1752927045253,0.29626352,118350.0,118340.0,1.38551598]
[1752927045853,0.27985239,118350.0,118340.0,1.38551598]
[1752927047452,0.2964625,118350.0,118340.0,1.38551598]
[1752927048158,0.2988325,118350.0,118340.0,1.38551598]
[1752927048659,0.42607439,118350.0,118340.0,1.38551598]
[1752927049361,0.42607439,118350.0,118340.0,0.3608]
[1752927049561,0.55331628,118350.0,118340.0,0.3608]
[1752927049858,0.42607439,118350.0,118340.0,0.3608]
[1752927053059,0.46853412,118350.0,118340.0,0.3608]
[1752927056364,0.2988325,118350.0,118340.0,0.3608]
[1752927056662,0.46853412,118350.0,118340.0,0.5297122]
[1752927056864,0.2988325,118350.0,118340.0,0.5297122]
[1752927057056,0.46694412,118350.0,118340.0,0.5297122]
[1752927057664,0.46694412,118350.0,118340.0,0.3608]
[1752927057964,0.1689121,118340.0,118330.0,1.11048238]
[1752927058158,0.2500721,118340.0,118330.0,1.47128238]
[1752927058363,0.2549021,118340.0,118330.0,1.47128238]
[1752927059062,0.2549021,118340.0,118330.0,1.30158076]
[1752927059765,0.2549021,118340.0,118330.0,1.25934966]
[1752927060070,0.2549021,118340.0,118330.0,1.17488826]
[1752927060266,0.42940701,118340.0,118330.0,1.17488826]
[1752927060563,0.25970539,118340.0,118330.0,1.17488826]
[1752927061262,0.27870539,118340.0,118330.0,1.17488826]
[1752927061759,0.44840701,118340.0,118330.0,1.00597386]
[1752927061967,0.46521299,118340.0,118330.0,1.00597386]
[1752927062666,0.29551137,118340.0,118330.0,1.17490026]
[1752927062867,0.46521299,118340.0,118330.0,1.17490026]
[1752927063166,0.46521299,118340.0,118330.0,1.00597386]
[1752927063664,0.29551137,118340.0,118330.0,1.00597386]
[1752927063857,0.29551137,118340.0,118330.0,1.17490026]
[1752927065460,0.29551137,118340.0,118330.0,1.34460188]
[1752927066866,0.29551137,118340.0,118330.0,0.98380188]
[1752927067165,0.29551137,118340.0,118330.0,1.34460188]
[1752927068370,0.29551137,118340.0,118330.0,1.17490026]
[1752927069866,0.29551137,118340.0,118330.0,1.34460188]
[1752927070578,0.29551137,118340.0,118330.0,1.17490026]
[1752927072875,0.29551137,118340.0,118330.0,1.34460188]
[1752927073876,0.29551137,118340.0,118330.0,1.17490026]
[1752927074972,0.42278601,118340.0,118330.0,1.3021749]
[1752927079384,0.42278601,118340.0,118330.0,1.17490026]
[1752927079778,0.42278601,118340.0,118330.0,1.1332485]
[1752927080281,0.55006065,118340.0,118330.0,1.1332485]
[1752927080480,0.55006065,118340.0,118330.0,1.00597386]
[1752927081084,0.55006065,118340.0,118330.0,1.1332485]
[1752927081782,0.29551137,118340.0,118330.0,1.3021749]
[1752927081981,0.55006065,118340.0,118330.0,1.3021749]
[1752927082382,0.42278601,118340.0,118330.0,1.17490026]
[1752927082583,0.42278601,118340.0,118330.0,1.3021749]
[1752927082777,0.42278601,118340.0,118330.0,1.25660104]
[1752927084085,0.42278601,118340.0,118330.0,1.08767464]
[1752927084681,0.55006065,118340.0,118330.0,0.48807464]
[1752927084983,0.55006065,118340.0,118330.0,1.08575464]
[1752927085182,0.55006065,118340.0,118330.0,0.59768]
[1752927085487,0.55006065,118340.0,118330.0,0.72495464]
[1752927087478,0.29551137,118340.0,118330.0,0.72495464]
[1752927087679,0.55006065,118340.0,118330.0,0.72495464]
[1752927088786,0.55006065,118340.0,118330.0,0.59768]
[1752927088986,0.55006065,118340.0,118330.0,0.72495464]
[1752927089592,0.55006065,118340.0,118330.0,1.25468104]
[1752927090090,0.42278601,118340.0,118330.0,1.08575464]
[1752927091193,0.2508464,118330.0,118320.0,0.7025885]
[1752927091395,0.4186921,118330.0,118320.0,1.3003085]
[1752927092688,0.40188612,118330.0,118320.0,1.25473464]
[1752927092892,0.40188612,118330.0,118320.0,1.25573464]
[1752927093086,0.40188612,118330.0,118320.0,0.64390467]
[1752927093391,0.41855649,118330.0,118320.0,0.77117931]
[1752927093691,0.41855649,118330.0,118320.0,0.94012001]
[1752927093887,0.29128185,118330.0,118320.0,1.30092001]
[1752927094190,0.41855649,118330.0,118320.0,1.30092001]
[1752927094490,0.41855649,118330.0,118320.0,1.30192001]
[1752927094890,0.29128185,118330.0,118320.0,1.42919465]
[1752927095097,0.27461148,118330.0,118320.0,1.42919465]
[1752927095292,0.26155477,118330.0,118320.0,1.42919465]
[1752927095796,0.24164477,118330.0,118320.0,1.44433513]
[1752927096093,0.02396837,118330.0,118320.0,1.51084462]
[1752927096295,0.19289477,118330.0,118320.0,1.57160977]
[1752927096486,0.19289477,118330.0,118320.0,1.44433513]
[1752927096995,0.21190477,118330.0,118320.0,1.57160977]
[1752927097298,0.21190477,118330.0,118320.0,1.44433513]
[1752927098295,0.04297837,118330.0,118320.0,1.44433513]
[1752927098497,0.21190477,118330.0,118320.0,1.57160977]
[1752927099390,0.04297837,118330.0,118320.0,1.57160977]
[1752927099603,0.21190477,118330.0,118320.0,1.91160977]
[1752927100094,0.21190477,118330.0,118320.0,1.18978585]
[1752927100290,0.21190477,118330.0,118320.0,1.57160977]
[1752927100488,0.04297837,118330.0,118320.0,1.57160977]
[1752927100690,0.21190477,118330.0,118320.0,1.57160977]
[1752927101994,0.21190477,118330.0,118320.0,1.93240977]
[1752927102396,0.04297837,118330.0,118320.0,1.93240977]
[1752927106002,0.04297837,118330.0,118320.0,2.22760977]
[1752927108201,0.04297837,118330.0,118320.0,1.84578585]
[1752927108403,0.04297837,118330.0,118320.0,2.22760977]
[1752927109908,0.04297837,118330.0,118320.0,2.54760977]
[1752927110806,0.04297837,118330.0,118320.0,2.22760977]
[1752927112702,0.04297837,118330.0,118320.0,2.60760977]
[1752927112905,0.04297837,118330.0,118320.0,2.22760977]
[1752927113507,0.04297837,118330.0,118320.0,2.58760977]
[1752927113711,0.04297837,118330.0,118320.0,2.22760977]
[1752927116415,0.04297837,118330.0,118320.0,2.59760977]
[1752927116708,0.00188837,118330.0,118320.0,2.51684462]
[1752927117015,0.00188837,118330.0,118320.0,2.59280106]
[1752927118012,0.00188837,118330.0,118320.0,3.76132106]
[1752927118613,0.21326837,118330.0,118320.0,3.76132106]
[1752927120514,0.20225846,118330.0,118320.0,3.76132106]
[1752927120813,0.20130846,118330.0,118320.0,3.90162106]
[1752927124120,0.20130846,118330.0,118320.0,3.18002106]
[1752927124316,0.20130846,118330.0,118320.0,3.90162106]
[1752927129217,0.25031846,118330.0,118320.0,3.90162106]
[1752927129715,0.25516846,118330.0,118320.0,3.90162106]
[1752927129914,0.45834486,118330.0,118320.0,3.35068642]
[1752927130420,0.45834486,118330.0,118320.0,3.27472998]
[1752927132919,0.45834486,118330.0,118320.0,3.3355065]
[1752927136221,0.45834486,118330.0,118320.0,2.48703722]
[1752927136418,0.45834486,118330.0,118320.0,3.2648265]
[1752927137222,0.45834486,118330.0,118320.0,2.0963065]
[1752927138622,0.45834486,118330.0,118320.0,1.8011065]
[1752927142826,0.45834486,118330.0,118320.0,1.74032998]
[1752927150734,0.45834486,118330.0,118320.0,1.01872998]
[1752927150935,0.45834486,118330.0,118320.0,1.80111396]
[1752927151234,0.45834486,118330.0,118320.0,1.74032998]
[1752927151430,0.45834486,118330.0,118320.0,1.14708998]
[1752927151631,0.5856195,118330.0,118320.0,1.80067737]
[1752927152033,0.45834486,118330.0,118320.0,1.80067737]
[1752927158847,0.45834486,118330.0,118320.0,1.07907737]
[1752927159046,0.45834486,118330.0,118320.0,1.43987737]
[1752927159447,0.45834486,118330.0,118320.0,1.18532809]
[1752927159650,0.45834486,118330.0,118320.0,1.43987737]
[1752927164057,0.5856195,118330.0,118320.0,1.43987737]
[1752927164356,0.45834486,118330.0,118320.0,1.43987737]
[1752927165858,0.45834486,118330.0,118320.0,1.18532809]
[1752927166159,0.45834486,118330.0,118320.0,1.31260273]
[1752927166658,0.5856195,118330.0,118320.0,1.31260273]
[1752927167053,0.45834486,118330.0,118320.0,1.43987737]
[1752927167260,0.45834486,118330.0,118320.0,1.18532809]
[1752927167562,0.45834486,118330.0,118320.0,1.43987737]
[1752927167761,0.45834486,118330.0,118320.0,1.37724998]
[1752927168060,0.45834486,118330.0,118320.0,1.24997534]
[1752927168957,0.45834486,118330.0,118320.0,1.37724998]
[1752927169851,0.45834486,118330.0,118320.0,1.39415883]
[1752927172665,0.45834486,118330.0,118320.0,1.43975316]
[1752927173466,0.45834486,118330.0,118320.0,1.39415883]
[1752927173865,0.45934486,118330.0,118320.0,1.39215883]
[1752927174167,0.46034486,118330.0,118320.0,1.39215883]
[1752927174369,0.5876195,118330.0,118320.0,1.4377534]
[1752927174673,0.46034486,118330.0,118320.0,1.4377534]
[1752927174967,0.5876195,118330.0,118320.0,1.4377534]
[1752927177666,0.46034486,118330.0,118320.0,1.4377534]
[1752927178264,0.47725946,118330.0,118320.0,1.4377534]
[1752927181468,0.6045341,118330.0,118320.0,1.4377534]
[1752927182772,0.6045341,118330.0,118320.0,1.13760955]
[1752927183071,0.5876195,118330.0,118320.0,1.45295159]
[1752927183973,0.5876195,118330.0,118320.0,0.86199159]
[1752927184171,0.5876195,118330.0,118320.0,1.32567695]
[1752927185775,0.46034486,118330.0,118320.0,1.45295159]
[1752927186076,0.46034486,118330.0,118320.0,1.19840231]
[1752927186272,0.46034486,118330.0,118320.0,1.45295159]
[1752927188876,0.6045452,118330.0,118320.0,1.26488419]
[1752927189076,0.6045452,118330.0,118320.0,1.39215883]
[1752927189669,0.6045452,118330.0,118320.0,1.26488419]
[1752927190277,0.6045452,118330.0,118320.0,1.13760955]
[1752927190574,0.6045452,118330.0,118320.0,1.26488419]
[1752927191173,0.6045452,118330.0,118320.0,0.37770885]
[1752927191375,0.60454495,118330.0,118320.0,0.63655207]
[1752927191774,0.60454495,118330.0,118320.0,0.76382671]
[1752927191975,0.60454495,118330.0,118320.0,0.93276741]
[1752927193073,0.47727031,118330.0,118320.0,0.93276741]
[1752927193377,0.60454495,118330.0,118320.0,0.93276741]
[1752927193579,0.60454495,118330.0,118320.0,0.76382671]
[1752927194078,0.60454495,118330.0,118320.0,0.93276741]
[1752927194788,0.60454495,118330.0,118320.0,1.29356741]
[1752927195278,0.47727031,118330.0,118320.0,1.29356741]
[1752927195471,0.60454495,118330.0,118320.0,1.29356741]
[1752927196482,0.60454495,118330.0,118320.0,1.16629277]
[1752927196674,0.60454495,118330.0,118320.0,1.12462671]
[1752927197681,0.60454495,118330.0,118320.0,1.29356751]
[1752927199088,0.60454495,118330.0,118320.0,1.12462671]
[1752927199384,0.60454495,118330.0,118320.0,1.29356751]
[1752927199881,0.60454495,118330.0,118320.0,1.12462671]
[1752927200680,0.73181959,118330.0,118320.0,0.02153797]
[1752927200879,0.2547608,118320.0,118310.0,0.95168]
[1752927201075,0.52643243,118320.0,118310.0,0.95168]
[1752927201383,0.52643243,118320.0,118310.0,0.59088]
[1752927201878,0.2547751,118310.0,118300.0,0.3608]
[1752927202084,0.2499893,118300.0,118290.0,0.55742174]
[1752927202273,0.38206394,118300.0,118290.0,1.08750898]
[1752927202473,0.38206394,118300.0,118290.0,1.25649258]
[1752927204181,0.38206394,118300.0,118290.0,0.96023434]
[1752927204383,0.38206394,118300.0,118290.0,1.08750898]
[1752927204684,0.38206394,118300.0,118290.0,1.25649258]
[1752927205082,0.2547893,118300.0,118290.0,1.25649258]
[1752927205283,0.45609776,118300.0,118290.0,1.25849258]
[1752927206788,0.45609776,118300.0,118290.0,1.25749258]
[1752927207088,0.5833724,118300.0,118290.0,1.13021794]
[1752927207384,0.5833724,118300.0,118290.0,1.25749258]
[1752927207586,0.87971904,118300.0,118290.0,0.37035434]
[1752927207782,0.2548179,118280.0,118270.0,0.6143016]
[1752927207977,0.2382779,118280.0,118270.0,1.37514904]
[1752927208283,0.2208179,118280.0,118270.0,1.33289624]
[1752927208589,0.7208179,118280.0,118270.0,1.24839414]
[1752927208789,0.7524079,118280.0,118270.0,1.07939464]
[1752927208981,0.7548179,118280.0,118270.0,0.12727464]
[1752927209381,0.7548179,118280.0,118270.0,1.09170313]
[1752927209781,0.7548179,118280.0,118270.0,1.26371533]
[1752927209991,0.88209254,118280.0,118270.0,0.54464069]
[1752927210184,0.88209254,118280.0,118270.0,1.26395533]
[1752927210185,0.7548179,118280.0,118270.0,1.26395533]
[1752927210399,0.88209254,118280.0,118270.0,1.26195533]
[1752927210779,0.7548179,118280.0,118270.0,1.13468069]
[1752927210984,0.95612636,118280.0,118270.0,1.13568069]
[1752927212190,1.02367739,118280.0,118270.0,1.13568069]
[1752927214390,1.02367739,118280.0,118270.0,0.77488069]
[1752927214583,1.02367739,118280.0,118270.0,1.13568069]
[1752927215991,1.19354476,118280.0,118270.0,1.13568069]
[1752927216684,1.02367739,118280.0,118270.0,1.13568069]
[1752927221596,1.02367739,118280.0,118270.0,1.30554806]
[1752927222583,1.02367739,118280.0,118270.0,1.13568069]
[1752927222785,1.02367739,118280.0,118270.0,1.30554806]
[1752927223882,1.02367739,118280.0,118270.0,1.13568069]
[1752927229987,1.31367739,118280.0,118270.0,1.13568069]
[1752927230393,1.3314006,118280.0,118270.0,1.13568069]
[1752927231598,0.1602958,118270.0,118250.0,0.4453165]
[1752927231795,0.2554565,118260.0,118250.0,1.1640087]
[1752927232102,0.2554565,118260.0,118250.0,1.29161867]
[1752927232103,0.27464515,118260.0,118250.0,1.29161867]
[1752927232695,0.27464515,118260.0,118250.0,0.95272]
[1752927232902,0.58237196,118260.0,118250.0,1.08015903]
[1752927233096,0.27564515,118260.0,118250.0,0.65827983]
[1752927233298,0.69308418,118260.0,118250.0,0.65827983]
[1752927233602,0.69308418,118260.0,118250.0,1.25123983]
[1752927234099,0.69308418,118260.0,118250.0,1.27316136]
[1752927234305,0.40308418,118260.0,118250.0,1.27316136]
[1752927234504,0.69308418,118260.0,118250.0,1.27316136]
[1752927234804,1.19308418,118260.0,118250.0,1.27316136]
[1752927235008,1.19308418,118260.0,118250.0,1.27216136]
[1752927235304,1.39439264,118260.0,118250.0,1.27216136]
[1752927236902,1.52183167,118260.0,118250.0,0.55176233]
[1752927237107,1.52183167,118260.0,118250.0,1.27160136]
[1752927237108,1.39439264,118260.0,118250.0,1.27160136]
[1752927238901,1.39439264,118260.0,118250.0,0.91080136]
[1752927239109,1.39439264,118260.0,118250.0,1.27160136]
[1752927240506,1.10439264,118260.0,118250.0,1.27160136]
[1752927240707,1.39439264,118260.0,118250.0,1.27160136]
[1752927242509,0.97695361,118260.0,118250.0,1.27160136]
[1752927242706,0.77325846,118260.0,118250.0,1.75984039]
[1752927242900,0.67747156,118260.0,118250.0,2.08984039]
[1752927243101,0.67747156,118260.0,118250.0,2.52807218]
[1752927243102,0.48360904,118260.0,118250.0,2.52807218]
[1752927243301,0.24923911,118260.0,118250.0,2.52807218]
[1752927243496,0.14310911,118260.0,118250.0,2.46727942]
[1752927243805,0.11510611,118260.0,118250.0,2.46727942]
[1752927244508,0.11510611,118260.0,118250.0,2.54327037]
[1752927244702,0.11510611,118260.0,118250.0,2.16195328]
[1752927245007,0.11267611,118260.0,118250.0,1.7418037]
[1752927245205,0.11267611,118260.0,118250.0,2.3348837]
[1752927245506,0.11267611,118260.0,118250.0,2.4751837]
[1752927249112,0.11267611,118260.0,118250.0,2.53593302]
[1752927249313,0.11267611,118260.0,118250.0,2.45994207]
[1752927249613,0.11267611,118260.0,118250.0,2.4751837]
[1752927250114,0.11267611,118260.0,118250.0,2.39919275]
[1752927250308,0.11267611,118260.0,118250.0,2.33481808]
[1752927250510,0.11267611,118260.0,118250.0,2.25889275]
[1752927250707,0.11267611,118260.0,118250.0,2.08907233]
[1752927250907,0.11267611,118260.0,118250.0,2.25889275]
[1752927251215,0.11267611,118260.0,118250.0,2.33480931]
[1752927252920,0.11267611,118260.0,118250.0,2.25889275]
[1752927253514,0.11267611,118260.0,118250.0,2.00889275]
[1752927253921,0.11267611,118260.0,118250.0,2.30409275]
[1752927256328,0.11267611,118260.0,118250.0,1.71101275]
[1752927256526,0.11267611,118260.0,118250.0,2.30285275]
[1752927259028,0.11267611,118260.0,118250.0,2.37872275]
[1752927260031,0.11267611,118260.0,118250.0,2.30285275]
[1752927260433,0.11267611,118260.0,118250.0,2.44315275]
[1752927262832,0.11267611,118260.0,118250.0,2.50384172]
[1752927263934,0.16090611,118260.0,118250.0,2.50384172]
[1752927264941,0.16090611,118260.0,118250.0,2.44315275]
[1752927265525,0.16090611,118260.0,118250.0,2.51902275]
[1752927266435,0.16090611,118260.0,118250.0,2.44315275]
[1752927266735,0.16090611,118260.0,118250.0,3.61219275]
[1752927266937,0.16090611,118260.0,118250.0,3.61159275]
[1752927267528,0.16090611,118260.0,118250.0,3.68746275]
[1752927267734,0.16090611,118260.0,118250.0,3.61159275]
[1752927268135,0.16090611,118260.0,118250.0,3.68746275]
[1752927270240,0.16090611,118260.0,118250.0,3.6876108]
[1752927272941,0.16090611,118260.0,118250.0,3.6117408]
[1752927273640,0.16090611,118260.0,118250.0,3.71812814]
[1752927274943,0.16090611,118260.0,118250.0,3.80305798]
[1752927275637,0.16090611,118260.0,118250.0,3.93043311]
[1752927277142,0.16090611,118260.0,118250.0,4.00650083]
[1752927277350,0.16090611,118260.0,118250.0,3.90011349]
[1752927281441,0.16090611,118260.0,118250.0,3.82404577]
[1752927281746,0.16090611,118260.0,118250.0,3.93043311]
[1752927287856,0.16090611,118260.0,118250.0,3.20883311]
[1752927288055,0.16090611,118260.0,118250.0,3.93043311]
[1752927290458,0.16090611,118260.0,118250.0,3.20883311]
[1752927290646,0.16090611,118260.0,118250.0,3.93043311]
[1752927291356,0.15800133,118260.0,118250.0,3.93043311]
[1752927293453,0.15800133,118260.0,118250.0,3.41527318]
[1752927293655,0.15800133,118260.0,118250.0,3.90004584]
[1752927294457,0.16366133,118260.0,118250.0,3.90004584]
[1752927294862,0.16366133,118260.0,118250.0,3.17844584]
[1752927295057,0.16366133,118260.0,118250.0,3.90004584]
[1752927297464,0.16366133,118260.0,118250.0,3.17844584]
[1752927297661,0.16366133,118260.0,118250.0,3.90004584]
[1752927297856,0.16366133,118260.0,118250.0,3.17844584]
[1752927298065,0.16366133,118260.0,118250.0,3.90004584]
[1752927298565,0.16366133,118260.0,118250.0,3.82396577]
[1752927300564,0.16366133,118260.0,118250.0,2.06376577]
[1752927300861,0.16366133,118260.0,118250.0,3.33915311]
[1752927301069,0.16366133,118260.0,118250.0,3.87897915]
[1752927301259,0.19957133,118260.0,118250.0,2.01247181]
[1752927301455,0.19957133,118260.0,118250.0,3.77259181]
[1752927303168,0.19957133,118260.0,118250.0,3.77255181]
[1752927304668,0.19957133,118260.0,118250.0,3.18147181]
[1752927304868,0.18004133,118260.0,118250.0,3.77255181]
[1752927305262,0.18004133,118260.0,118250.0,3.55617064]
[1752927305568,0.18004133,118260.0,118250.0,2.96509064]
[1752927305762,0.18004133,118260.0,118250.0,3.55617064]
[1752927305959,0.18004133,118260.0,118250.0,3.66255798]
[1752927306769,0.16366133,118260.0,118250.0,3.66255798]
[1752927308068,0.16366133,118260.0,118250.0,3.73863342]
[1752927308575,0.16366133,118260.0,118250.0,1.87216608]
[1752927308773,0.16366133,118260.0,118250.0,3.63224608]
[1752927308976,0.16366133,118260.0,118250.0,1.87216608]
[1752927309174,0.16366133,118260.0,118250.0,3.63224608]
[1752927311978,0.15800133,118260.0,118250.0,3.63224608]
[1752927312773,0.16366133,118260.0,118250.0,3.63224608]
[1752927312974,0.16366133,118260.0,118250.0,3.55617064]
[1752927314381,0.16366133,118260.0,118250.0,3.63224608]
[1752927315280,0.16366133,118260.0,118250.0,3.77254608]
[1752927315977,0.16366133,118260.0,118250.0,3.18150608]
[1752927316176,0.16366133,118260.0,118250.0,3.77250608]
[1752927319082,0.16366133,118260.0,118250.0,3.89988121]
[1752927320277,0.16366133,118260.0,118250.0,3.75958121]
[1752927320585,0.15800133,118260.0,118250.0,3.75958121]
[1752927321081,0.15800133,118260.0,118250.0,1.92346577]
[1752927321281,0.15203135,118260.0,118250.0,1.92346577]
[1752927321481,0.15203135,118260.0,118250.0,3.78985311]
[1752927322784,0.37191995,118310.0,118300.0,0.1689735]
[1752927322982,0.55837523,118310.0,118300.0,1.24810863]
[1752927323183,0.5120337,118310.0,118300.0,1.37548376]
[1752927323488,0.1169277,118310.0,118300.0,1.37548376]
[1752927323874,0.1229277,118310.0,118300.0,1.37548376]
[1752927324184,0.2918869,118310.0,118300.0,1.37548376]
[1752927324385,0.27448762,118310.0,118300.0,1.37548376]
[1752927324580,0.10552842,118310.0,118300.0,1.37548376]
[1752927324779,0.11118842,118310.0,118300.0,1.37548376]
[1752927324980,0.29753865,118310.0,118300.0,1.37548376]
[1752927325282,0.12857945,118310.0,118300.0,1.37548376]
[1752927325482,0.11118842,118310.0,118300.0,1.37548376]
[1752927325988,0.32256842,118310.0,118300.0,1.37548376]